bitfinex/quotes_ETHUSD_20260119
["timestamp","ask_amount","ask_price","bid_price","bid_amount"]
[1768795884117,0.91161811,3211.4,3211.0,0.002]
[1768795884899,0.91061811,3211.2,3210.6,0.002]
[1768795885477,0.91061811,3211.0,3210.1,0.95157534]
[1768795885681,0.91061811,3210.8,3210.1,0.95157534]
[1768795885881,3.1145748,3210.8,3210.1,0.95157534]
[1768795886181,0.91061811,3210.7,3210.1,0.95157534]
[1768795887920,0.91061811,3210.6,3210.1,0.95157534]
[1768795888618,4.02532352,3210.6,3210.1,0.95157534]
[1768795889596,0.91061811,3210.5,3209.8,0.95157534]
[1768795890091,0.91061811,3210.4,3209.8,0.95157534]
[1768795892586,0.91061811,3210.4,3209.9,0.95157534]
[1768795893918,3.11468261,3210.6,3209.9,0.95157534]
[1768795894324,1.42461811,3210.7,3210.0,0.95157534]
[1768795894325,4.53923347,3210.7,3210.0,0.95157534]
[1768795895927,0.91061811,3210.6,3210.0,0.95157534]
[1768795897128,4.02539773,3210.5,3210.0,0.95157534]
[1768795897623,3.11525691,3211.1,3210.4,0.95157534]
[1768795897624,0.91061811,3211.0,3210.4,0.95157534]
[1768795897829,0.91061811,3211.0,3210.3,0.002]
[1768795897830,0.91061811,3210.9,3210.3,0.002]
[1768795899548,0.90971925,3211.1,3210.3,0.9203128]
[1768795899829,3.62921334,3211.1,3210.5,0.9183128]
[1768795900131,3.11521334,3211.1,3210.7,0.9183128]
[1768795901328,0.001,3211.1,3210.7,0.9183128]
[1768795902707,3.1149865,3211.4,3210.8,0.9183128]
[1768795902912,0.90871925,3211.3,3210.9,0.9183128]
[1768795903427,0.90871925,3211.3,3210.5,0.9183128]
[1768795903735,4.02277052,3211.3,3210.6,0.9183128]
[1768795904209,0.90871925,3211.2,3210.6,0.9183128]
[1768795904528,0.90871925,3211.2,3210.4,0.514]
[1768795904728,0.90871925,3211.1,3210.4,0.514]
[1768795905808,0.90871925,3210.9,3210.4,0.514]
[1768795906002,0.90871925,3210.9,3210.0,0.002]
[1768795906328,0.90871925,3210.8,3210.0,0.002]
[1768795906553,0.90871925,3210.6,3210.0,0.002]
[1768795907833,0.90871925,3210.4,3210.0,0.002]
[1768795910142,4.0236087,3210.4,3210.0,0.002]
[1768795910330,4.0236087,3210.4,3210.3,0.002]
[1768795912946,5.25143844,3210.4,3210.3,0.002]
[1768795922459,3.11468874,3210.6,3210.3,0.002]
[1768795922460,0.98633542,3210.6,3210.3,0.002]
[1768795922626,3.11493801,3211.4,3210.3,0.9843442]
[1768795922957,0.98633542,3211.2,3210.4,0.9823442]
[1768795924557,3.11419762,3211.1,3210.4,0.9823442]
[1768795924932,3.62892685,3211.4,3210.5,0.9823442]
[1768795925144,6.51928133,3211.3,3210.6,0.9823442]
[1768795925349,0.29127399,3211.2,3210.6,0.9823442]
[1768795925528,6.22800734,3211.3,3210.6,0.9823442]
[1768795925875,0.29126245,3211.2,3210.6,0.9823442]
[1768795926044,6.22800734,3211.3,3210.6,0.9823442]
[1768795926244,0.29126251,3211.2,3210.6,0.9823442]
[1768795926561,6.22800734,3211.3,3210.6,0.9823442]
[1768795926756,3.11419762,3211.1,3210.6,0.9823442]
[1768795927272,3.11419762,3211.1,3210.3,3.11695768]
[1768795927273,0.98633542,3211.3,3210.7,0.9823442]
[1768795927760,4.10124744,3211.4,3210.7,0.9823442]
[1768795927957,0.98633542,3211.3,3210.7,0.9823442]
[1768795928261,0.98633542,3211.1,3210.4,0.9823442]
[1768795928652,0.98633542,3210.8,3210.3,0.002]
[1768795930837,4.10091954,3210.8,3210.3,0.002]
[1768795931867,4.10091954,3210.8,3210.3,0.9843442]
[1768795932438,7.21550366,3210.8,3210.3,0.9843442]
[1768795932892,7.21550366,3210.8,3210.3,0.002]
[1768795932893,0.98633542,3210.7,3210.3,0.002]
[1768795933872,1.50033542,3210.7,3210.3,0.002]
[1768795934790,1.50033542,3210.7,3210.3,0.9843442]
[1768795935176,4.61492174,3210.7,3210.3,0.9843442]
[1768795936884,4.10092174,3210.7,3210.3,0.002]
[1768795937069,4.61492174,3210.7,3210.3,0.002]
[1768795937585,1.50033542,3210.7,3210.3,0.9843442]
[1768795937884,0.514,3210.7,3210.3,0.9843442]
[1768795939387,3.62860524,3210.7,3210.3,0.9843442]
[1768795939953,0.514,3210.7,3210.3,0.9843442]
[1768795941853,3.11542933,3210.9,3210.3,0.9843442]
[1768795942082,3.11542933,3210.9,3210.4,0.9823442]
[1768795942684,3.11542933,3210.9,3210.4,0.90639045]
[1768795943085,0.92296155,3210.9,3210.4,0.90639045]
[1768795943263,0.92296155,3210.9,3210.0,0.002]
[1768795943264,0.92196155,3210.4,3210.0,0.002]
[1768795943461,0.92196155,3210.3,3209.8,0.90639045]
[1768795944395,0.92196155,3210.4,3209.8,0.90639045]
[1768795944566,0.514,3210.5,3209.8,0.90639045]
[1768795944900,1.43596155,3210.5,3209.8,0.90639045]
[1768795945104,0.001,3210.4,3209.8,0.90639045]
[1768795945393,6.2307533,3210.4,3209.8,0.90639045]
[1768795945575,0.76667149,3210.3,3209.8,0.90639045]
[1768795945779,0.92196155,3210.2,3209.8,0.90639045]
[1768795947097,4.0378382,3210.4,3209.8,0.90639045]
[1768795947784,0.001,3210.4,3209.9,0.90639045]
[1768795948206,0.001,3210.4,3210.1,0.90639045]
[1768795949419,0.001,3210.4,3209.7,8.93898657]
[1768795949420,3.11588512,3210.4,3209.7,0.90639045]
[1768795949633,0.92196155,3210.3,3209.6,0.002]
[1768795949933,0.92196155,3210.0,3209.6,0.002]
[1768795950141,0.92196155,3209.8,3209.6,0.002]
[1768795950792,0.92196155,3209.8,3209.2,0.90639045]
[1768795951819,3.11555597,3209.7,3209.2,0.90639045]
[1768795951989,0.92196155,3210.0,3209.3,0.90639045]
[1768795952194,0.514,3209.9,3209.3,0.90639045]
[1768795952394,0.514,3209.9,3209.4,0.90639045]
[1768795952619,0.92196155,3210.0,3209.4,0.90639045]
[1768795952823,1.43596155,3210.0,3209.4,0.90639045]
[1768795954421,4.55123785,3210.0,3209.4,0.90639045]
[1768795954794,4.55123785,3210.0,3208.8,0.514]
[1768795954795,0.92196155,3209.9,3208.8,0.514]
[1768795955102,0.92196155,3209.9,3208.9,0.90639045]
[1768795955905,0.92196155,3209.7,3208.9,0.90639045]
[1768795956638,0.92196155,3209.7,3209.2,0.002]
[1768795957716,0.92196155,3209.7,3209.2,0.90839045]
[1768795958027,3.11565304,3209.6,3209.2,0.90839045]
[1768795966250,4.03753261,3209.7,3209.2,0.90839045]
[1768795966409,3.11557106,3209.7,3209.2,0.90839045]
[1768795968047,7.18277597,3209.7,3209.2,0.90839045]
[1768795968907,0.001,3209.6,3209.2,0.90839045]
[1768795971014,0.95263385,3209.6,3209.2,0.90839045]
[1768795973440,3.11575011,3209.5,3209.2,0.002]
[1768795973649,0.954054,3209.4,3208.9,0.002]
[1768795974017,0.954054,3209.4,3208.9,0.96053823]
[1768795974922,0.954054,3209.5,3208.9,0.96053823]
[1768795975111,4.07072248,3209.6,3208.9,0.96053823]
[1768795976255,4.07072248,3209.6,3209.0,0.95853823]
[1768795976455,0.955054,3209.6,3209.0,0.95853823]
[1768795976931,4.07072026,3209.6,3209.0,0.95853823]
[1768795978322,4.84074927,3209.6,3209.0,0.95853823]
[1768795979218,0.001,3209.6,3209.0,0.95853823]
[1768795979754,3.1166667,3209.6,3209.0,0.95853823]
[1768795980254,3.1166667,3209.6,3208.9,0.002]
[1768795980255,3.1166667,3209.6,3209.3,0.96053823]
[1768795980623,3.1166667,3209.6,3209.3,0.002]
[1768795980824,0.001,3209.6,3209.3,0.002]
[1768795981666,0.001,3209.6,3209.3,0.96053823]
[1768795993359,8.9394035,3210.4,3209.4,0.95853823]
[1768795993360,4.06917814,3210.2,3209.4,0.95853823]
[1768795993537,4.58317814,3210.2,3209.6,0.95853823]
[1768795993941,1.468054,3210.2,3209.6,0.95853823]
[1768795994468,4.58314964,3210.2,3209.6,0.95853823]
[1768795995536,1.468054,3210.2,3209.6,0.95853823]
[1768795995769,4.58316078,3210.2,3209.6,0.95853823]
[1768795995940,1.468054,3210.2,3209.6,0.95853823]
[1768795996146,4.58314637,3210.2,3209.6,0.95853823]
[1768796001188,0.954054,3210.1,3209.6,0.95853823]
[1768796003077,4.06923722,3210.1,3209.6,0.95853823]
[1768796003386,0.954054,3210.1,3209.6,0.95853823]
[1768796004488,4.06922819,3210.1,3209.6,0.95853823]
[1768796005274,0.001,3209.9,3209.6,0.95853823]
[1768796007991,0.001,3209.9,3209.4,0.93564002]
[1768796008500,0.514,3210.2,3209.6,0.93564002]
[1768796009491,0.94172311,3210.1,3209.4,0.93564002]
[1768796009893,4.05692182,3210.1,3209.4,0.93564002]
[1768796010708,0.94172311,3210.1,3209.5,0.93564002]
[1768796011269,0.94172311,3210.1,3209.4,3.11580891]
[1768796011270,0.94172311,3210.0,3209.3,0.93764002]
[1768796011470,5.82681823,3209.8,3209.3,0.002]
[1768796011683,4.05734938,3209.7,3209.3,0.002]
[1768796011864,0.94172311,3209.6,3209.3,0.002]
[1768796012266,0.94172311,3209.6,3209.0,0.93764002]
[1768796012966,0.94172311,3209.5,3209.0,0.93764002]
[1768796014086,3.11584719,3209.4,3209.0,0.93764002]
[1768796014279,4.0575703,3209.4,3209.0,0.002]
[1768796015293,4.5715703,3209.4,3209.0,0.002]
[1768796016905,4.5715703,3209.4,3209.3,0.002]
[1768796017070,5.47542941,3209.4,3209.0,0.002]
[1768796017271,4.5715703,3209.4,3209.0,0.002]
[1768796017596,0.514,3209.4,3209.0,0.93764002]
[1768796017803,3.11576647,3209.5,3209.0,0.93764002]
[1768796017804,0.514,3209.5,3209.0,0.93764002]
[1768796017997,0.514,3209.7,3209.0,0.93764002]
[1768796019104,3.11565304,3209.6,3209.0,0.93764002]
[1768796020586,3.62959724,3209.7,3209.0,0.93764002]
[1768796020784,4.39449521,3209.7,3209.0,0.93764002]
[1768796024010,7.51009245,3209.7,3209.0,0.93764002]
[1768796024199,8.41299572,3209.7,3209.0,0.93764002]
[1768796026324,4.78339848,3209.7,3209.0,0.93764002]
[1768796026481,4.01850051,3209.7,3209.0,0.93764002]
[1768796027624,3.11559724,3209.7,3209.0,0.93764002]
[1768796028484,4.01850051,3209.7,3209.0,0.93764002]
[1768796028899,4.01850051,3209.7,3209.3,0.002]
[1768796029322,0.001,3209.4,3209.3,0.002]
[1768796037926,0.001,3209.4,3209.3,0.98137984]
[1768796040427,0.001,3209.9,3209.3,0.98137984]
[1768796040428,0.001,3209.9,3209.4,0.97937984]
[1768796042632,0.001,3209.9,3209.5,0.97937984]
[1768796046100,0.001,3209.9,3209.6,0.97937984]
[1768796049248,0.001,3209.9,3209.6,4.09502098]
[1768796050918,3.11588404,3210.4,3209.8,0.97937984]
[1768796051118,0.514,3210.3,3209.8,0.97937984]
[1768796051708,1.41934085,3210.3,3209.8,0.97937984]
[1768796052035,0.514,3210.3,3209.8,0.97937984]
[1768796052242,0.90534085,3210.2,3209.5,0.97937984]
[1768796052409,0.90534085,3210.2,3209.7,0.97937984]
[1768796055135,4.02042172,3210.2,3209.7,0.97937984]
[1768796055335,0.90534085,3210.1,3209.5,4.09511447]
[1768796055531,0.90534085,3210.1,3209.5,0.97937984]
[1768796055833,0.90534085,3210.1,3209.4,0.97937984]
[1768796056033,0.90534085,3210.1,3209.5,0.97937984]
[1768796056446,3.11508087,3210.2,3208.9,0.002]
[1768796056447,0.90534085,3209.6,3208.9,0.002]
[1768796056616,0.90534085,3209.5,3208.9,0.002]
[1768796056950,0.514,3209.6,3208.7,0.002]
[1768796056951,0.90534085,3209.3,3208.7,0.002]
[1768796057157,0.90534085,3209.1,3208.7,0.002]
[1768796061256,0.90534085,3209.3,3208.7,0.98137984]
[1768796061460,1.41934085,3209.2,3208.7,0.98137984]
[1768796061975,0.90534085,3209.2,3208.7,0.98137984]
[1768796063885,4.02139609,3209.2,3208.7,0.98137984]
[1768796064470,4.02139609,3209.2,3209.0,0.002]
[1768796064673,4.4749357,3209.2,3209.0,0.002]
[1768796065276,1.35888046,3209.2,3209.0,0.002]
[1768796065432,0.94041115,3209.1,3209.0,0.002]
[1768796067886,4.57036444,3209.3,3209.0,0.002]
[1768796068098,5.02740088,3209.3,3209.0,0.002]
[1768796068285,0.94041115,3209.2,3209.0,0.002]
[1768796070247,0.94041115,3209.1,3208.7,0.002]
[1768796072091,5.02741912,3209.3,3208.7,0.96153354]
[1768796072394,4.57038268,3209.3,3208.7,0.96153354]
[1768796077097,0.001,3209.0,3208.7,0.96153354]
[1768796088909,0.94345189,3209.0,3208.7,0.002]
[1768796089078,0.94345189,3209.0,3208.6,0.002]
[1768796089805,0.94245189,3208.8,3208.6,0.002]
[1768796090313,0.94245189,3208.8,3208.2,0.9191397]
[1768796090492,0.94245189,3208.8,3208.1,0.9211397]
[1768796090686,1.45745189,3208.8,3208.1,0.9211397]
[1768796090884,0.94245189,3208.7,3208.1,0.9211397]
[1768796091116,0.94245189,3208.7,3208.1,0.002]
[1768796091412,0.94245189,3208.6,3208.1,0.002]
[1768796092499,3.11663247,3208.6,3208.1,0.002]
[1768796092704,0.93331644,3208.5,3208.1,0.002]
[1768796095087,4.05004998,3208.5,3208.1,0.002]
[1768796096512,1.70232817,3208.7,3208.1,0.98470458]
[1768796096715,1.44831644,3208.7,3208.1,0.98470458]
[1768796096913,4.56485653,3208.7,3208.1,0.98470458]
[1768796097615,4.04985653,3208.7,3208.1,0.98470458]
[1768796097787,1.44831644,3208.7,3208.1,0.98470458]
[1768796098488,4.56485415,3208.7,3208.1,0.98470458]
[1768796100324,4.56485005,3208.7,3208.4,0.002]
[1768796100488,5.02133506,3208.7,3208.4,0.002]
[1768796100911,0.93331644,3208.6,3208.4,0.002]
[1768796102211,0.93331644,3208.5,3208.1,0.002]
[1768796104103,3.11681835,3208.4,3208.1,0.002]
[1768796104308,4.05013479,3208.4,3208.1,0.002]
[1768796104527,0.93331644,3208.3,3208.1,0.002]
[1768796105135,0.93331644,3208.2,3207.8,0.002]
[1768796106060,0.93331644,3208.2,3207.7,1e-08]
[1768796106258,0.93331644,3208.2,3207.3,0.98270458]
[1768796106259,0.93331644,3207.9,3207.3,0.98270458]
[1768796107030,0.93331644,3207.9,3207.4,0.98470458]
[1768796108236,0.93331644,3207.9,3207.5,0.98270458]
[1768796108551,3.11705098,3208.2,3207.5,0.98270458]
[1768796108743,4.05036742,3208.2,3207.5,0.98270458]
[1768796109371,8.94696422,3208.8,3207.6,0.98270458]
[1768796109372,0.93331644,3208.8,3207.6,0.98270458]
[1768796109575,3.11652694,3208.7,3207.9,0.98270458]
[1768796109796,3.11652694,3208.7,3208.0,0.98270458]
[1768796112698,0.93431644,3209.0,3208.1,0.98270458]
[1768796112992,0.93431644,3209.0,3208.2,0.98270458]
[1768796112993,0.93331644,3208.9,3208.2,0.98270458]
[1768796113141,0.93331644,3208.7,3207.8,0.98270458]
[1768796114301,0.93331644,3208.5,3207.5,0.98270458]
[1768796114466,0.93331644,3208.2,3207.5,0.98270458]
[1768796114844,0.93331644,3208.1,3207.4,0.002]
[1768796115048,0.93331644,3208.0,3207.4,0.002]
[1768796116079,0.93331644,3207.9,3207.4,0.002]
[1768796117499,0.93331644,3207.8,3207.4,0.002]
[1768796119663,0.93331644,3207.8,3207.4,0.98470458]
[1768796120506,4.05074584,3207.8,3207.4,0.002]
[1768796120727,4.81904944,3207.8,3207.4,0.002]
[1768796120994,0.93331644,3207.7,3207.4,0.002]
[1768796122405,4.05062187,3207.9,3207.4,0.002]
[1768796122592,1.51494515,3208.0,3207.4,0.97464708]
[1768796123108,4.63218379,3208.0,3207.4,0.97464708]
[1768796124395,4.63216519,3208.0,3207.4,0.97464708]
[1768796124594,1.00094515,3207.9,3207.4,0.97464708]
[1768796126495,0.001,3207.9,3207.4,0.97464708]
[1768796129402,0.001,3207.9,3207.5,0.97264708]
[1768796132945,0.515,3208.6,3207.6,0.97264708]
[1768796133155,3.11681835,3208.4,3207.6,4.09024124]
[1768796133449,0.99994515,3208.7,3207.6,4.09024124]
[1768796133450,0.99994515,3209.4,3208.4,0.97264708]
[1768796133600,0.99994515,3209.2,3208.5,0.97264708]
[1768796134305,1.82662016,3209.4,3208.5,0.97264708]
[1768796135445,1.82662016,3209.4,3208.5,4.08927676]
[1768796135446,4.94248962,3209.4,3208.5,4.08927676]
[1768796135765,4.94248962,3209.4,3208.6,0.97264708]
[1768796137028,4.94248962,3209.4,3208.6,3.11661826]
[1768796137240,0.001,3209.1,3208.7,0.97264708]
[1768796138039,0.99994515,3208.7,3207.9,4.08988822]
[1768796138341,0.99994515,3208.7,3208.0,0.90782961]
[1768796139148,3.11652925,3208.7,3208.0,0.90782961]
[1768796139326,0.94601096,3208.6,3208.0,0.90782961]
[1768796142163,4.06264509,3208.6,3208.0,0.90782961]
[1768796142734,0.94601096,3208.5,3208.0,0.90782961]
[1768796142936,0.94601096,3208.4,3207.7,0.002]
[1768796143137,0.94601096,3208.4,3207.7,0.90982961]
[1768796147696,0.94601096,3208.4,3207.8,0.90782961]
[1768796148900,4.06283165,3208.4,3207.8,0.90782961]
[1768796149102,4.06283165,3208.4,3208.0,0.002]
[1768796149869,0.94601096,3208.3,3208.0,0.002]
[1768796152792,0.43538647,3208.4,3208.0,0.97757025]
[1768796153291,3.55222399,3208.4,3208.0,0.97757025]
[1768796154166,0.43538647,3208.4,3208.0,0.97757025]
[1768796154481,3.11682558,3208.4,3208.0,0.97757025]
[1768796155095,4.04464007,3208.4,3208.0,0.002]
[1768796160580,0.92781449,3208.3,3208.0,0.002]
[1768796161825,0.92781449,3208.3,3207.7,0.002]
[1768796162142,6.23366522,3208.4,3207.7,0.97757025]
[1768796162143,4.04482714,3208.2,3207.7,0.97757025]
[1768796162330,4.76099312,3208.2,3207.7,0.97757025]
[1768796162534,0.92781449,3208.1,3207.7,0.002]
[1768796163043,0.92781449,3208.1,3207.6,0.002]
[1768796164103,7.46519128,3208.2,3207.4,1.49157025]
[1768796164104,4.04521582,3207.8,3207.4,0.002]
[1768796164299,5.34505444,3207.8,3207.4,0.002]
[1768796164505,0.92781449,3207.7,3207.4,0.002]
[1768796165301,0.92781449,3207.7,3207.1,0.002]
[1768796167051,3.11759571,3207.6,3207.1,0.97757025]
[1768796169696,3.11750885,3207.7,3207.1,0.97757025]
[1768796169967,0.49323475,3207.6,3207.1,0.97757025]
[1768796170333,1.29983862,3207.8,3207.2,0.97557025]
[1768796170573,0.515,3207.9,3207.2,0.97557025]
[1768796171374,1.44281449,3207.9,3207.2,0.97557025]
[1768796171671,4.56020535,3207.9,3207.2,0.97557025]
[1768796172570,0.515,3207.9,3207.3,0.97557025]
[1768796172774,0.515,3208.5,3207.5,0.97557025]
[1768796172960,0.92781449,3208.3,3207.5,0.97557025]
[1768796174079,3.11701265,3208.2,3207.5,0.97557025]
[1768796174286,0.92781449,3208.2,3207.6,0.97557025]
[1768796174845,0.515,3208.5,3207.6,1.38489455]
[1768796175038,0.52014586,3208.3,3207.7,0.97557025]
[1768796178352,3.63706559,3208.3,3207.7,0.97557025]
[1768796179442,0.52014586,3208.2,3207.7,0.97557025]
[1768796182139,3.63700302,3208.4,3207.7,0.97557025]
[1768796184886,3.63700302,3208.4,3208.0,0.002]
[1768796185045,4.3638758,3208.4,3208.0,0.002]
[1768796185447,0.52014586,3208.3,3208.0,0.002]
[1768796187286,3.63715851,3208.2,3208.0,0.002]
[1768796187490,0.52014586,3208.0,3207.6,0.002]
[1768796189774,0.52014586,3207.8,3207.2,0.9572407]
[1768796190637,12.0682583,3207.9,3207.2,0.9572407]
[1768796191073,12.58840416,3207.9,3207.2,0.9572407]
[1768796191644,3.11749851,3207.7,3207.2,0.9572407]
[1768796192678,3.6375884,3207.8,3207.2,0.9572407]
[1768796192873,3.6375884,3207.8,3207.3,0.9572407]
[1768796193948,6.75503094,3207.8,3207.3,0.9572407]
[1768796194283,3.6375884,3207.8,3207.3,0.9572407]
[1768796194439,3.11744254,3207.8,3207.3,0.9572407]
[1768796196780,3.11744254,3207.8,3207.5,0.002]
[1768796198372,3.11744254,3207.8,3207.5,1.00045569]
[1768796199184,0.29171011,3207.7,3207.5,1.00045569]
[1768796199381,3.11744254,3207.8,3207.5,0.002]
[1768796199582,0.29170414,3207.7,3207.5,0.002]
[1768796199782,3.11744254,3207.8,3207.5,0.002]
[1768796199958,0.29170421,3207.7,3207.5,0.002]
[1768796200148,3.11744254,3207.8,3207.5,0.002]
[1768796200348,0.29170427,3207.7,3207.5,0.002]
[1768796200550,3.11744254,3207.8,3207.5,0.002]
[1768796200876,0.29169915,3207.7,3207.5,0.002]
[1768796201180,3.11744254,3207.8,3207.5,0.002]
[1768796201383,0.29169578,3207.7,3207.5,0.002]
[1768796201570,3.11744254,3207.8,3207.5,0.002]
[1768796201745,0.29168103,3207.7,3207.5,0.002]
[1768796201949,3.11744254,3207.8,3207.5,0.002]
[1768796202146,0.29168103,3207.7,3207.5,0.002]
[1768796202444,3.11744254,3207.8,3207.5,0.002]
[1768796202645,0.29166344,3207.7,3207.5,0.002]
[1768796202949,3.6375884,3207.8,3207.5,0.002]
[1768796203150,3.40921676,3207.7,3207.5,0.002]
[1768796203351,3.11755326,3207.7,3207.5,0.002]
[1768796204783,3.63757396,3207.8,3207.5,0.002]
[1768796204983,0.29164009,3207.7,3207.5,0.002]
[1768796205160,3.63757396,3207.8,3207.5,0.002]
[1768796205459,0.29164003,3207.7,3207.5,0.002]
[1768796205659,3.63757396,3207.8,3207.5,0.002]
[1768796205860,0.29164049,3207.7,3207.5,0.002]
[1768796206050,3.63757396,3207.8,3207.5,0.002]
[1768796206250,0.29164055,3207.7,3207.5,0.002]
[1768796206476,3.63757396,3207.8,3207.5,0.002]
[1768796206647,0.29164644,3207.7,3207.5,0.002]
[1768796206848,3.63757396,3207.8,3207.5,0.002]
[1768796207149,3.40915872,3207.7,3207.5,0.002]
[1768796207347,3.11751228,3207.7,3207.5,0.002]
[1768796207751,3.11744192,3207.8,3207.5,0.002]
[1768796208084,0.29165727,3207.7,3207.5,0.002]
[1768796208381,3.11744192,3207.8,3207.5,0.002]
[1768796208588,0.29167331,3207.7,3207.6,0.002]
[1768796208788,0.81181917,3207.7,3207.6,0.002]
[1768796209150,3.92931768,3207.7,3207.6,0.002]
[1768796209351,3.40917182,3207.7,3207.6,0.002]
[1768796215316,3.40917182,3207.7,3207.3,0.002]
[1768796215613,0.29167331,3207.6,3207.3,0.94778909]
[1768796215806,3.40929024,3207.6,3207.3,0.94778909]
[1768796216012,3.11752942,3207.7,3207.3,0.94778909]
[1768796216188,0.29198154,3207.6,3207.3,0.94778909]
[1768796216388,3.11752942,3207.7,3207.3,0.94778909]
[1768796216609,0.2920543,3207.6,3207.3,0.94778909]
[1768796216790,3.11752942,3207.7,3207.3,0.94778909]
[1768796216995,0.29205424,3207.6,3207.3,0.94778909]
[1768796217229,3.11752942,3207.7,3207.3,0.94778909]
[1768796217495,0.29215368,3207.6,3207.3,0.94778909]
[1768796217695,0.29215368,3207.5,3207.3,0.94778909]
[1768796218002,3.11752942,3207.7,3207.3,0.94778909]
[1768796218214,0.29215379,3207.6,3207.3,0.94778909]
[1768796218382,0.29215379,3207.5,3207.3,0.94778909]
[1768796218713,3.11752942,3207.7,3207.3,0.94778909]
[1768796219014,0.2921932,3207.6,3207.3,0.94778909]
[1768796219200,0.2921932,3207.5,3207.3,0.94778909]
[1768796219401,3.11752942,3207.7,3207.3,0.94778909]
[1768796219600,0.29224624,3207.6,3207.3,0.94778909]
[1768796219912,0.29224624,3207.5,3207.3,0.94778909]
[1768796220113,3.11760609,3207.6,3207.3,0.94778909]
[1768796220417,0.29224636,3207.5,3207.3,0.002]
[1768796220598,0.96329717,3207.5,3207.3,0.002]
[1768796220911,3.11760609,3207.6,3207.3,0.002]
[1768796221086,0.29225776,3207.5,3207.3,0.002]
[1768796221416,3.11760609,3207.6,3207.3,0.002]
[1768796221614,0.29227213,3207.5,3207.3,0.002]
[1768796221793,3.11753612,3207.7,3207.3,0.94778909]
[1768796221996,0.29227207,3207.6,3207.3,0.94778909]
[1768796222304,0.29227207,3207.5,3207.3,0.94778909]
[1768796222509,3.11753612,3207.7,3207.3,0.94778909]
[1768796222814,0.29229034,3207.6,3207.3,0.94778909]
[1768796223021,0.29229034,3207.5,3207.3,0.94778909]
[1768796223225,7.19817573,3207.8,3207.3,0.94778909]
[1768796223410,1.01212627,3207.7,3207.3,0.94778909]
[1768796223589,0.2923087,3207.6,3207.3,0.94778909]
[1768796223790,0.71981757,3207.7,3207.3,0.94778909]
[1768796223791,0.2923087,3207.5,3207.3,0.94778909]
[1768796224120,0.96329717,3207.5,3207.1,0.002]
[1768796224299,0.29232173,3207.4,3207.1,0.002]
[1768796224499,0.96329717,3207.5,3207.1,0.002]
[1768796224818,0.29232147,3207.4,3207.1,0.94778909]
[1768796225020,6.23532824,3207.6,3207.1,0.94778909]
[1768796225316,0.29232142,3207.5,3207.1,0.94778909]
[1768796225523,0.2923315,3207.4,3207.1,0.94778909]
[1768796225727,7.0813994,3207.6,3207.1,0.94778909]
[1768796225928,0.29232741,3207.5,3207.1,0.94778909]
[1768796226090,4.08072664,3207.8,3207.2,0.94578909]
[1768796226091,3.11748831,3207.8,3207.2,0.94578909]
[1768796227434,7.19827379,3207.8,3207.2,0.94578909]
[1768796227730,0.96329717,3207.7,3207.1,0.94778909]
[1768796227924,4.08089288,3207.6,3207.1,0.94778909]
[1768796231925,7.19848859,3207.6,3207.1,0.94778909]
[1768796232131,7.19848859,3207.6,3207.4,0.002]
[1768796232295,7.91833745,3207.6,3207.4,0.002]
[1768796232628,0.001,3207.5,3207.4,0.002]
[1768796235758,0.001,3207.5,3207.1,0.002]
[1768796235909,0.001,3207.5,3207.1,0.94778909]
[1768796239159,0.96329717,3207.4,3207.1,0.002]
[1768796239330,0.96429717,3207.5,3207.1,0.002]
[1768796239658,0.29237134,3207.4,3207.1,0.94778909]
[1768796239860,0.96429717,3207.5,3207.1,0.94778909]
[1768796240015,0.29237128,3207.4,3207.1,0.94778909]
[1768796240210,0.96429717,3207.5,3207.1,0.94778909]
[1768796240412,0.29237114,3207.4,3207.1,0.94778909]
[1768796240612,0.001,3207.5,3207.1,0.94778909]
[1768796240811,0.29236565,3207.4,3207.1,0.94778909]
[1768796241045,0.001,3207.5,3207.1,0.94778909]
[1768796241332,0.29236571,3207.4,3207.1,0.94778909]
[1768796241533,0.001,3207.5,3207.1,0.94778909]
[1768796241733,0.29236111,3207.4,3207.1,0.94778909]
[1768796241933,0.001,3207.5,3207.1,0.94778909]
[1768796242134,0.29236111,3207.4,3207.1,0.94778909]
[1768796242335,0.001,3207.5,3207.1,0.94778909]
[1768796242536,0.2923573,3207.4,3207.1,0.94778909]
[1768796242725,0.001,3207.5,3207.1,0.94778909]
[1768796243343,0.001,3207.5,3207.3,0.91282535]
[1768796244647,0.001,3207.5,3207.4,0.002]
[1768796255259,0.001,3207.5,3207.4,0.91482535]
[1768796255460,0.515,3208.5,3207.5,0.91282535]
[1768796255632,1.27985957,3208.4,3207.5,0.91282535]
[1768796255839,1.27985957,3208.3,3207.7,0.91282535]
[1768796256037,0.29227027,3208.2,3207.7,0.91282535]
[1768796256241,0.29227027,3208.1,3207.7,0.91282535]
[1768796256444,4.10459472,3208.3,3207.7,0.91282535]
[1768796256761,0.2921247,3208.2,3207.7,0.91282535]
[1768796256940,0.2921247,3208.1,3207.7,0.91282535]
[1768796257142,4.10459472,3208.3,3207.7,0.91282535]
[1768796257343,0.29212437,3208.2,3207.7,0.91282535]
[1768796257550,0.29212437,3208.1,3207.7,0.91282535]
[1768796257737,1.5025893,3208.5,3207.8,0.91282535]
[1768796257738,4.61934954,3208.5,3207.8,0.91282535]
[1768796257928,1.2795974,3208.4,3207.8,0.91282535]
[1768796258134,0.9875893,3208.4,3207.8,0.91282535]
[1768796259570,0.9875893,3208.4,3207.8,4.03022502]
[1768796259789,0.9875893,3208.4,3207.9,0.99242662]
[1768796260068,3.11536198,3209.9,3208.1,0.99242662]
[1768796260069,0.91388331,3208.9,3208.1,0.99242662]
[1768796260240,0.91388331,3209.0,3208.1,0.99242662]
[1768796260445,0.2915144,3208.9,3208.1,0.99242662]
[1768796260656,0.91388331,3209.0,3208.1,0.99242662]
[1768796261059,0.001,3209.1,3208.1,0.99242662]
[1768796261265,0.001,3209.1,3208.2,0.99242662]
[1768796261462,4.03102348,3209.1,3208.4,0.99242662]
[1768796261861,0.91488331,3209.1,3208.5,0.99242662]
[1768796262053,4.03102871,3209.1,3208.5,0.99242662]
[1768796262644,0.001,3209.1,3208.7,0.99242662]
[1768796264851,0.001,3209.1,3208.7,4.10893991]
[1768796265047,0.001,3209.1,3208.7,0.99242662]
[1768796266661,0.001,3209.1,3208.7,4.10894552]
[1768796267256,0.001,3209.1,3208.8,0.99242662]
[1768796271872,0.001,3209.1,3208.7,3.11651597]